lending/lending_fUSD_20240411
["ID","MTS","AMOUNT","RATE_DAILY","PERIOD"]
[322152639,1712854234539,-500.0,0.00032774,2]
[322152640,1712854234549,-500.0,0.00032774,2]
[322152641,1712854234558,-2621.05,0.00032774,2]
[322152642,1712854234567,-500.0,0.00032774,2]
[322152643,1712854234577,-2391.29,0.00032774,2]
[322152644,1712854234586,-834.35,0.00032774,2]
[322152645,1712854234595,-828.38,0.00032774,2]
[322152646,1712854234605,-500.0,0.00032774,2]
[322152647,1712854234614,-2961.12,0.00032774,2]
[322152648,1712854234624,-500.0,0.00032774,2]
[322152649,1712854234633,-583.41,0.00032774,2]
[322152650,1712854234642,-2025.09,0.00032774,2]
[322152651,1712854234652,-500.0,0.00032774,2]
[322152652,1712854234661,-514.43,0.00032774,2]
[322152653,1712854234671,-500.0,0.00032774,2]
[322152654,1712854234681,-5485.72,0.00032774,2]
[322152655,1712854234690,-642.9,0.00032774,2]
[322152656,1712854234700,-500.0,0.00032774,2]
[322152657,1712854234709,-500.0,0.00032774,2]
[322152658,1712854234719,-9806.9,0.00032774,2]
[322152659,1712854234728,-655.2,0.00032774,2]
[322152660,1712854234737,-763.85,0.00032774,2]
[322152661,1712854234749,-563.5602161,0.00032774,2]
[322152662,1712854234758,-500.0,0.00032774,2]
[322152663,1712854234767,-500.0,0.00032774,2]
[322152664,1712854234776,-500.0,0.00032774,2]
[322152665,1712854234790,-2533.81,0.00032774,2]
[322152666,1712854234799,-762.15,0.00032774,2]
[322152667,1712854234810,-2352.33,0.00032774,2]
[322152668,1712854234819,-849.33,0.00032774,2]
[322152669,1712854234843,-500.0,0.00032774,2]
[322152670,1712854234854,-500.0,0.00032774,2]
[322152671,1712854234863,-500.0,0.00032774,2]
[322152672,1712854234872,-500.0,0.00032774,2]
[322152673,1712854234880,-500.0,0.00032774,2]
[322152674,1712854234890,-500.0,0.00032774,2]
[322152675,1712854234900,-3899.44,0.00032774,2]
[322152676,1712854234908,-210.05,0.00032774,2]
[322152677,1712854234916,-2701.92,0.00032774,2]
[322152678,1712854234925,-500.0,0.00032775,2]
[322152679,1712854234934,-500.0,0.00032775,2]
[322152680,1712854234942,-500.0,0.00032775,2]
[322152681,1712854234951,-500.0,0.00032775,2]
[322152682,1712854234959,-500.0,0.00032775,2]
[322152683,1712854234967,-500.0,0.00032775,2]
[322152684,1712854234976,-500.0,0.00032775,2]
[322152685,1712854234985,-500.0,0.00032775,2]
[322152686,1712854234993,-857.36,0.00032775,2]
[322152687,1712854235002,-539.09,0.00032775,2]
[322152688,1712854235011,-500.0,0.00032775,2]
[322152689,1712854235020,-500.0,0.00032775,2]
[322152690,1712854235031,-500.0,0.00032775,2]
[322152691,1712854235319,-175.70260221,0.00032775,2]
[322152692,1712854235331,-900.76,0.00032775,2]
[322152693,1712854235342,-500.0,0.00032775,2]
[322152694,1712854235352,-566.64,0.00032775,2]
[322152695,1712854235362,-500.0,0.00032775,2]
[322152696,1712854235373,-500.0,0.00032775,2]
[322152697,1712854235383,-652.54,0.00032775,2]
[322152698,1712854235393,-531.61126495,0.00032775,2]
[322152699,1712854235402,-500.0,0.00032775,2]
[322152700,1712854235412,-500.0,0.00032775,2]
[322152701,1712854235422,-500.0,0.00032775,2]
[322152702,1712854235431,-506.99,0.00032775,2]
[322152703,1712854235441,-500.0,0.00032775,2]
[322152704,1712854235454,-500.0,0.00032775,2]
[322152705,1712854235464,-500.0,0.00032775,2]
[322152706,1712854235474,-500.0,0.00032775,2]
[322152707,1712854235483,-500.0,0.00032775,2]
[322152708,1712854235493,-500.0,0.00032775,2]
[322152709,1712854235503,-939.04,0.00032775,2]
[322152710,1712854235513,-500.0,0.00032775,2]
[322152711,1712854235522,-500.0,0.00032775,2]
[322152712,1712854235532,-500.0,0.00032775,2]
[322152713,1712854235542,-506.37,0.00032775,2]
[322152714,1712854235552,-500.0,0.00032775,2]
[322152715,1712854235561,-500.0,0.00032775,2]
[322152716,1712854235571,-500.0,0.00032775,2]
[322152717,1712854235581,-500.0,0.00032775,2]
[322152718,1712854235590,-500.0,0.00032775,2]
[322152719,1712854235601,-500.0,0.00032775,2]
[322152720,1712854235610,-500.0,0.00032775,2]
[322152721,1712854235620,-500.0,0.00032775,2]
[322152722,1712854235630,-500.0,0.00032775,2]
[322152723,1712854235639,-508.88005721,0.00032775,2]
[322152724,1712854235649,-500.0,0.00032775,2]
[322152725,1712854235658,-500.0,0.00032775,2]
[322152726,1712854235668,-500.0,0.00032775,2]
[322152727,1712854235677,-500.0,0.00032775,2]
[322152728,1712854235687,-532.80088212,0.00032775,2]
[322152729,1712854235697,-738.89,0.00032775,2]
[322152730,1712854235707,-1590.56,0.00032775,2]
[322152731,1712854235717,-1465.63,0.00032775,2]
[322152732,1712854235726,-500.0,0.00032775,2]
[322152733,1712854235736,-500.0,0.00032775,2]
[322152734,1712854235746,-2532.93,0.00032775,2]
[322152735,1712854235760,-500.0,0.00032775,2]
[322152736,1712854235769,-500.0,0.00032775,2]
[322152737,1712854235779,-500.0,0.00032775,2]
[322152738,1712854235789,-500.0,0.00032775,2]
[322152739,1712854235799,-500.0,0.00032775,2]
[322152740,1712854235809,-500.0,0.00032775,2]
[322152741,1712854235819,-814.32,0.00032775,2]
[322152742,1712854235832,-795.3,0.00032775,2]
[322152743,1712854235842,-500.0,0.00032775,2]
[322152744,1712854235851,-970.22,0.00032775,2]
[322152745,1712854235860,-587.95166688,0.00032775,2]
[322152746,1712854235870,-500.0,0.00032775,2]
[322152747,1712854235880,-759.7,0.00032775,2]
[322152748,1712854235889,-500.0,0.00032775,2]
[322152749,1712854235899,-500.0,0.00032775,2]
[322152750,1712854235909,-500.0,0.00032775,2]
[322152751,1712854235920,-500.0,0.00032775,2]
[322152752,1712854235930,-765.91,0.00032775,2]
[322152753,1712854235939,-503.84688644,0.00032775,2]
[322152754,1712854235949,-500.0,0.00032775,2]
[322152755,1712854235959,-500.0,0.00032775,2]
[322152756,1712854235969,-500.0,0.00032775,2]
[322152757,1712854235979,-500.0,0.00032775,2]
[322152758,1712854235989,-500.0,0.00032775,2]
[322152759,1712854236002,-500.0,0.00032775,2]
[322152760,1712854236012,-687.16,0.00032775,2]
[322152761,1712854236022,-500.0,0.00032775,2]
[322152762,1712854236033,-512.53,0.00032775,2]
[322152763,1712854236043,-1630.49,0.00032775,2]
[322152764,1712854236053,-500.0,0.00032775,2]
[322152765,1712854236062,-502.97996571,0.00032775,2]
[322152766,1712854236072,-367.56682448,0.00032775,2]
[322152767,1712854236082,-500.0,0.00032775,2]
[322152768,1712854236092,-500.0,0.00032775,2]
[322152769,1712854236102,-1424.49,0.00032775,2]
[322152770,1712854236111,-843.92,0.00032775,2]
[322152771,1712854236121,-641.65,0.00032775,2]
[322152772,1712854236130,-500.0,0.00032775,2]
[322152773,1712854236140,-500.0,0.00032775,2]
[322152774,1712854236150,-243.04191182,0.00032775,2]
[322152775,1712854236160,-918.05,0.00032775,2]
[322152776,1712854236170,-500.0,0.00032775,2]
[322152777,1712854236180,-1258.43,0.00032775,2]
[322152778,1712854236190,-500.0,0.00032775,2]
[322152779,1712854236200,-1181.51,0.00032775,2]
[322152780,1712854236209,-862.87,0.00032775,2]
[322152781,1712854236219,-500.0,0.00032775,2]
[322152782,1712854236229,-986.87,0.00032775,2]
[322152783,1712854236238,-677.87,0.00032775,2]
[322152784,1712854236247,-1118.89,0.00032775,2]
[322152785,1712854236257,-500.0,0.00032775,2]
[322152786,1712854236267,-516.54112797,0.00032775,2]
[322152787,1712854236277,-240.01652206,0.00032775,2]
[322152788,1712854236288,-500.0,0.00032775,2]
[322152789,1712854236298,-395.51262884,0.00032775,2]
[322152790,1712854236308,-500.0,0.00032775,2]
[322152791,1712854236317,-500.0,0.00032775,2]
[322152792,1712854236327,-500.0,0.00032775,2]
[322152793,1712854236337,-500.0,0.00032775,2]
[322152794,1712854236347,-500.0,0.00032775,2]
[322152795,1712854236356,-500.0,0.00032775,2]
[322152796,1712854236366,-500.0,0.00032775,2]
[322152797,1712854236376,-500.0,0.00032775,2]
[322152798,1712854236386,-500.0,0.00032775,2]
[322152799,1712854236395,-500.0,0.00032775,2]
[322152800,1712854236405,-500.0,0.00032775,2]
[322152801,1712854236415,-2351.49,0.00032775,2]
[322152802,1712854236425,-500.0,0.00032775,2]
[322152803,1712854236435,-518.66,0.00032775,2]
[322152804,1712854236445,-548.25562345,0.00032775,2]
[322152805,1712854236454,-12583.7,0.00032775,2]
[322152806,1712854236464,-500.0,0.00032775,2]
[322152807,1712854236474,-500.0,0.00032775,2]
[322152808,1712854236483,-1122.44,0.00032775,2]
[322152809,1712854236493,-500.0,0.00032775,2]
[322152810,1712854236502,-500.0,0.00032775,2]
[322152811,1712854236515,-500.0,0.00032775,2]
[322152812,1712854236525,-2199.37,0.00032775,2]
[322152813,1712854236536,-577.11034952,0.00032775,2]
[322152814,1712854236546,-500.0,0.00032775,2]
[322152815,1712854236556,-1714.49,0.00032775,2]
[322152816,1712854236567,-500.0,0.00032775,2]
[322152817,1712854236577,-508.63,0.00032775,2]
[322152818,1712854236587,-500.0,0.00032775,2]
[322152819,1712854236597,-607.91,0.00032775,2]
[322152820,1712854236607,-500.0,0.00032775,2]
[322152821,1712854236617,-500.0,0.00032775,2]
[322152822,1712854236627,-2165.78,0.00032775,2]
[322152823,1712854236637,-4034.24,0.00032775,2]
[322152824,1712854236647,-500.0,0.00032775,2]
[322152825,1712854236658,-3848.99,0.00032775,2]
[322152826,1712854236668,-500.0,0.00032775,2]
[322152827,1712854236678,-500.0,0.00032775,2]
[322152828,1712854236688,-500.0,0.00032775,2]
[322152829,1712854236699,-638.12,0.00032775,2]
[322152830,1712854236709,-21246.74,0.00032775,2]
[322152831,1712854236719,-1166.76,0.00032775,2]
[322152832,1712854236730,-1014.1,0.00032775,2]
[322152833,1712854236740,-1133.96,0.00032775,2]
[322152834,1712854236753,-5795.67,0.00032775,2]
[322152835,1712854236763,-500.0,0.00032775,2]
[322152836,1712854236773,-3168.41,0.00032775,2]
[322152837,1712854236784,-545.66,0.00032775,2]
[322152838,1712854236796,-500.0,0.00032775,2]
[322152839,1712854236806,-9407.25,0.00032775,2]
[322152840,1712854236816,-549.4664468,0.00032775,2]
[322152841,1712854236827,-626.16,0.00032775,2]
[322152842,1712854236838,-500.0,0.00032775,2]
[322152843,1712854236848,-2018.32,0.00032775,2]
[322152844,1712854236858,-500.0,0.00032775,2]
[322152845,1712854236868,-511.44537848,0.00032775,2]
[322152846,1712854236878,-3707.2,0.00032775,2]
[322152847,1712854236887,-500.0,0.00032775,2]
[322152848,1712854236897,-500.0,0.00032775,2]
[322152849,1712854236908,-500.0,0.00032775,2]
[322152850,1712854236918,-500.0,0.00032775,2]
[322152851,1712854236928,-598.77,0.00032775,2]
[322152852,1712854236938,-500.0,0.00032775,2]
[322152853,1712854236948,-500.0,0.00032775,2]
[322152854,1712854236959,-2058.86,0.00032775,2]
[322152855,1712854236969,-171.83651152,0.00032775,2]
[322152856,1712854236979,-4901.92,0.00032775,2]
[322152857,1712854236990,-500.0,0.00032775,2]
[322152858,1712854237000,-500.0,0.00032775,2]
[322152859,1712854237010,-614.70083576,0.00032775,2]
[322152860,1712854237020,-824.7,0.00032775,2]
[322152861,1712854237030,-500.0,0.00032775,2]
[322152862,1712854237040,-500.0,0.00032775,2]
[322152863,1712854237050,-500.0,0.00032775,2]
[322152864,1712854237060,-2420.27,0.00032775,2]
[322152865,1712854237070,-528.13,0.00032775,2]
[322152866,1712854237080,-837.65,0.00032775,2]
[322152867,1712854237090,-471.22762964,0.00032775,2]
[322152868,1712854237100,-500.0,0.00032775,2]
[322152869,1712854237110,-500.0,0.00032775,2]
[322152870,1712854237120,-500.0,0.00032775,2]
[322152871,1712854237130,-517.98,0.00032775,2]
[322152872,1712854237140,-500.0,0.00032775,2]
[322152873,1712854237150,-500.0,0.00032775,2]
[322152874,1712854237160,-980.97,0.00032775,2]
[322152875,1712854237170,-500.0,0.00032775,2]
[322152876,1712854237179,-500.0,0.00032775,2]
[322152877,1712854237189,-5559.87,0.00032775,2]
[322152879,1712854237199,-500.0,0.00032775,2]
[322152881,1712854237208,-500.0,0.00032775,2]
[322152882,1712854237218,-500.0,0.00032775,2]
[322152883,1712854237228,-500.0,0.00032775,2]
[322152884,1712854237239,-500.0,0.00032775,2]
[322152885,1712854237249,-1444.03,0.00032775,2]
[322152887,1712854237259,-500.0,0.00032775,2]
[322152889,1712854237269,-500.0,0.00032775,2]
[322152891,1712854237280,-500.0,0.00032775,2]
[322152893,1712854237290,-4064.01,0.00032775,2]
[322152894,1712854237300,-500.0,0.00032775,2]
[322152895,1712854237310,-500.0,0.00032775,2]
[322152896,1712854237319,-1232.04,0.00032775,2]
[322152897,1712854237329,-500.0,0.00032775,2]
[322152898,1712854237339,-1056.86,0.00032775,2]
[322152899,1712854237349,-605.78446193,0.00032775,2]
[322152900,1712854237359,-5466.87,0.00032775,2]
[322152901,1712854237368,-842.78,0.00032775,2]
[322152903,1712854237378,-500.0,0.00032775,2]
[322152904,1712854237388,-500.0,0.00032775,2]
[322152905,1712854237398,-500.0,0.00032775,2]
[322152906,1712854237408,-2249.77,0.00032775,2]
[322152907,1712854237417,-500.0,0.00032775,2]
[322152908,1712854237427,-500.0,0.00032775,2]
[322152909,1712854237436,-1399.98,0.00032775,2]
[322152910,1712854237446,-1572.73,0.00032775,2]
[322152911,1712854237456,-500.0,0.00032775,2]
[322152912,1712854237466,-500.0,0.00032775,2]
[322152913,1712854237476,-500.0,0.00032775,2]
[322152914,1712854237485,-605.93,0.00032775,2]
[322152915,1712854237495,-495.78948242,0.00032775,2]
[322152916,1712854237505,-500.0,0.00032775,2]
[322152917,1712854237514,-1562.06,0.00032775,2]
[322152918,1712854237524,-500.0,0.00032775,2]
[322152919,1712854237534,-1442.87,0.00032775,2]
[322152920,1712854237544,-500.0,0.00032775,2]
[322152921,1712854237553,-1157.53,0.00032775,2]
[322152922,1712854237563,-500.0,0.00032775,2]
[322152923,1712854237572,-500.0,0.00032775,2]
[322152924,1712854237582,-877.54,0.00032775,2]
[322152925,1712854237591,-500.0,0.00032775,2]
[322152926,1712854237601,-500.0,0.00032775,2]
[322152927,1712854237610,-662.58,0.00032775,2]
[322152928,1712854237620,-3135.53,0.00032775,2]
[322152929,1712854237629,-3330.23,0.00032775,2]
[322152930,1712854237639,-549.85,0.00032775,2]
[322152931,1712854237649,-500.0,0.00032775,2]
[322152932,1712854237659,-500.0,0.00032775,2]
[322152933,1712854237668,-795.29,0.00032775,2]
[322152934,1712854237678,-500.0,0.00032775,2]
[322152935,1712854237687,-1601.54,0.00032775,2]
[322152936,1712854237697,-2208.36,0.00032775,2]
[322152937,1712854237706,-500.0,0.00032775,2]
[322152938,1712854237715,-510.38,0.00032775,2]
[322152939,1712854237724,-1174.38,0.00032775,2]
[322152940,1712854237734,-500.0,0.00032775,2]
[322152941,1712854237743,-500.0,0.00032775,2]
[322152942,1712854237755,-1055.45,0.00032775,2]
[322152943,1712854237765,-1682.76,0.00032775,2]
[322152944,1712854237774,-500.0,0.00032775,2]
[322152945,1712854237784,-2273.9,0.00032775,2]
[322152946,1712854237795,-500.0,0.00032775,2]
[322152947,1712854237804,-500.0,0.00032775,2]
[322152948,1712854237814,-4001.09,0.00032775,2]
[322152949,1712854237824,-500.0,0.00032775,2]
[322152950,1712854237835,-500.0,0.00032775,2]
[322152951,1712854237845,-500.0,0.00032775,2]
[322152952,1712854237855,-500.0,0.00032775,2]
[322152953,1712854237864,-500.0,0.00032775,2]
[322152954,1712854237873,-2259.94,0.00032775,2]
[322152956,1712854237883,-2251.86,0.00032775,2]
[322152957,1712854237892,-3510.15,0.00032775,2]
[322152958,1712854237901,-500.0,0.00032775,2]
[322152959,1712854237911,-2017.61,0.00032775,2]
[322152960,1712854237920,-500.0,0.00032775,2]
[322152961,1712854237929,-646.94,0.00032775,2]
[322152962,1712854237938,-500.0,0.00032775,2]
[322152963,1712854237947,-500.0,0.00032775,2]
[322152964,1712854237956,-500.0,0.00032775,2]
[322152965,1712854237965,-500.0,0.00032775,2]
[322152966,1712854237974,-6419.36,0.00032775,2]
[322152967,1712854237984,-500.0,0.00032775,2]
[322152968,1712854237993,-500.0,0.00032775,2]
[322152969,1712854238003,-500.0,0.00032775,2]
[322152970,1712854238013,-10054.85,0.00032775,2]
[322152971,1712854238022,-500.0,0.00032775,2]
[322152972,1712854238032,-581.83,0.00032775,2]
[322152973,1712854238041,-500.0,0.00032775,2]
[322152974,1712854238050,-1344.27,0.00032775,2]
[322152975,1712854238060,-500.0,0.00032775,2]
[322152976,1712854238069,-500.0,0.00032775,2]
[322152977,1712854238079,-42869.13,0.00032775,2]
[322152978,1712854238088,-512.01,0.00032775,2]
[322152979,1712854238098,-760.17,0.00032775,2]
[322152980,1712854238107,-1608.28,0.00032775,2]
[322152981,1712854238117,-500.0,0.00032775,2]
[322152982,1712854238126,-495.7896,0.00032776,2]
[322152983,1712854238135,-353.37,0.00032826,2]
[322152984,1712854238144,-537.05019208,0.00032839,7]
[322152985,1712854238153,-620.17244457,0.00032844,4]
[322152986,1712854238163,-800.0,0.00032849,2]
[322152987,1712854238172,-800.0,0.00032849,2]
[322152988,1712854238182,-426.25801578,0.00032858,4]
[322152989,1712854238191,-428.34372909,0.00032872,4]
[322152992,1712854238201,-550.49040338,0.00032873,2]
[322152994,1712854238212,-500.5971425,0.00032873,2]
[322152996,1712854238221,-500.0,0.00032873,2]
[322152998,1712854238231,-1851.67,0.00032873,2]
[322152999,1712854238241,-1234.73,0.00032873,2]
[322153000,1712854238251,-500.0,0.00032873,2]
[322153001,1712854238262,-504.62459214,0.00032873,2]
[322153002,1712854238272,-500.0,0.00032873,2]
[322153003,1712854238284,-505.50934669,0.00032873,2]
[322153004,1712854238294,-1131.95,0.00032873,2]
[322153005,1712854238305,-505.81424257,0.00032873,2]
[322153006,1712854238316,-526.12242382,0.00032873,2]
[322153007,1712854238326,-514.88779291,0.00032873,2]
[322153008,1712854238336,-504.38360226,0.00032873,2]
[322153009,1712854238346,-500.0,0.00032873,2]
[322153010,1712854238356,-2730.54,0.00032873,2]
[322153011,1712854238365,-2221.86,0.00032873,2]
[322153012,1712854238375,-500.0,0.00032873,2]
[322153013,1712854238384,-500.0,0.00032873,2]
[322153014,1712854238394,-500.0,0.00032873,2]
[322153015,1712854238403,-1450.05,0.00032873,2]
[322153016,1712854238412,-1133.23,0.00032873,2]
[322153017,1712854238422,-500.0,0.00032873,2]
[322153018,1712854238431,-500.0,0.00032873,2]
[322153019,1712854238441,-503.16876529,0.00032873,2]
[322153020,1712854238450,-500.0,0.00032873,2]
[322153021,1712854238460,-1339.65,0.00032873,2]
[322153022,1712854238469,-500.0,0.00032873,2]
[322153023,1712854238478,-503.80455844,0.00032873,2]
[322153024,1712854238487,-500.0,0.00032873,2]
[322153025,1712854238497,-500.0,0.00032873,2]
[322153026,1712854238507,-500.0,0.00032873,2]
[322153027,1712854238516,-506.71421416,0.00032873,2]
[322153028,1712854238525,-500.0,0.00032873,2]
[322153029,1712854238536,-505.91928536,0.00032873,2]
[322153030,1712854238546,-512.36059889,0.00032873,2]
[322153031,1712854238556,-553.64,0.00032873,2]
[322153032,1712854238566,-1583.0,0.00032873,2]
[322153033,1712854238575,-501.27310266,0.00032873,2]
[322153034,1712854238584,-284.33247154,0.00032873,2]
[322153035,1712854238594,-1647.98,0.00032873,2]
[322153036,1712854238603,-504.98565456,0.00032873,2]
[322153037,1712854238612,-500.0,0.00032873,2]
[322153038,1712854238622,-500.0,0.00032873,2]
[322153039,1712854238632,-1340.1,0.00032873,2]
[322153040,1712854238642,-500.0,0.00032873,2]
[322153041,1712854238653,-500.0,0.00032873,2]
[322153042,1712854238662,-506.09367085,0.00032873,2]
[322153043,1712854238671,-500.0,0.00032873,2]
[322153044,1712854238680,-1141.65,0.00032873,2]
[322153045,1712854238690,-500.0,0.00032873,2]
[322153046,1712854238699,-500.0,0.00032873,2]
[322153047,1712854238709,-500.0,0.00032873,2]
[322153048,1712854238719,-2001.53,0.00032873,2]
[322153049,1712854238728,-500.0,0.00032873,2]
[322153050,1712854238737,-500.0,0.00032873,2]
[322153051,1712854238750,-914.82,0.00032873,2]
[322153052,1712854238759,-1457.09,0.00032873,2]
[322153053,1712854238769,-500.0,0.00032873,2]
[322153054,1712854238778,-506.56278981,0.00032873,2]
[322153055,1712854238791,-1696.0,0.00032873,2]
[322153056,1712854238800,-708.8,0.00032873,2]
[322153057,1712854238819,-302.0263374,0.00032873,2]
[322153058,1712854238830,-500.0,0.00032873,2]
[322153060,1712854239053,-1461.27,0.00032873,2]
[322153061,1712854239063,-500.0,0.00032873,2]
[322153062,1712854239073,-424.44045623,0.00032873,2]
[322153063,1712854239082,-1555.82,0.00032873,2]
[322153064,1712854239092,-3693.69,0.00032873,2]
[322153065,1712854239102,-500.0,0.00032873,2]
[322153066,1712854239111,-554.12,0.00032873,2]
[322153067,1712854239120,-646.24,0.00032873,2]
[322153068,1712854239130,-762.39,0.00032873,2]
[322153069,1712854239139,-500.0,0.00032873,2]
[322153070,1712854239149,-953.19,0.00032873,2]
[322153071,1712854239158,-2060.01,0.00032873,2]
[322153072,1712854239167,-3688.04,0.00032873,2]
[322153073,1712854239177,-1462.53,0.00032873,2]
[322153074,1712854239186,-500.0,0.00032873,2]
[322153075,1712854239196,-811.25,0.00032873,2]
[322153076,1712854239206,-500.0,0.00032873,2]
[322153077,1712854239215,-500.0,0.00032873,2]
[322153078,1712854239225,-150.40797084,0.00032873,2]
[322153079,1712854239234,-9205.39,0.00032873,2]
[322153080,1712854239243,-607.85,0.00032873,2]
[322153081,1712854239252,-2451.85,0.00032873,2]
[322153082,1712854239261,-11764.88,0.00032873,2]
[322153083,1712854239270,-500.0,0.00032873,2]
[322153084,1712854239280,-2483.11,0.00032873,2]
[322153085,1712854239290,-2830.62,0.00032873,2]
[322153087,1712854239299,-1243.09,0.00032873,2]
[322153089,1712854239308,-7071.69,0.00032873,2]
[322153091,1712854239317,-1452.89,0.00032873,2]
[322153093,1712854239327,-500.0,0.00032873,2]
[322153095,1712854239336,-3138.66,0.00032873,2]
[322153097,1712854239346,-3100.27,0.00032873,2]
[322153099,1712854239355,-1442.47,0.00032873,2]
[322153101,1712854239365,-500.0,0.00032873,2]
[322153103,1712854239374,-1991.04,0.00032873,2]
[322153105,1712854239383,-500.0,0.00032873,2]
[322153107,1712854239393,-500.0,0.00032873,2]
[322153109,1712854239402,-1718.25,0.00032873,2]
[322153111,1712854239411,-840.35,0.00032873,2]
[322153114,1712854239420,-500.0,0.00032873,2]
[322153116,1712854239430,-2241.6851506,0.00032873,2]
[322153121,1712854239467,-677.45377569,0.00032873,2]
[322153124,1712854239479,-2929.7727476,0.00032873,2]
[322153126,1712854239490,-5142.07172595,0.00032873,2]
[322153128,1712854239502,-4869.87206032,0.00032873,2]
[322153130,1712854239514,-53464.75453984,0.00032873,2]
[322153132,1712854239523,-8111.19,0.00032873,2]
[322153134,1712854239532,-3742.9,0.00032873,2]
[322153136,1712854239542,-5263.66,0.00032873,2]
[322153138,1712854239552,-2349.3,0.00032873,2]
[322153140,1712854239561,-13265.79,0.00032873,2]
[322153142,1712854239570,-343.54721225,0.00032873,2]
[322153144,1712854239579,-500.0,0.00032873,2]
[322153146,1712854239589,-2652.79,0.00032873,2]
[322153148,1712854239598,-5291.81,0.00032873,2]
[322153150,1712854239608,-1608.19,0.00032873,2]
[322153152,1712854239617,-500.0,0.00032873,2]
[322153154,1712854239627,-13409.8,0.00032873,2]
[322153156,1712854239636,-500.0,0.00032873,2]
[322153158,1712854239645,-1444.49,0.00032873,2]
[322153160,1712854239655,-24377.98,0.00032873,2]
[322153162,1712854239664,-500.0,0.00032873,2]
[322153164,1712854239673,-500.0,0.00032873,2]
[322153166,1712854239683,-18845.09,0.00032873,2]
[322153168,1712854239692,-500.0,0.00032873,2]
[322153170,1712854239702,-4502.02,0.00032873,2]
[322153172,1712854239711,-500.0,0.00032873,2]
[322153173,1712854239720,-500.0,0.00032873,2]
[322153175,1712854239730,-3451.45,0.00032873,2]
[322153177,1712854239739,-1941.39,0.00032873,2]
[322153179,1712854239750,-4011.56,0.00032873,2]
[322153181,1712854239762,-12722.2368611,0.00032873,2]
[322153183,1712854239776,-284.49703418,0.00032873,2]
[322153185,1712854239789,-1277.75610472,0.00032873,2]
[322153187,1712854239800,-1879.4,0.00032873,2]
[322153189,1712854239809,-1086.68796605,0.00032873,2]
[322153192,1712854239821,-2925.47203395,0.00032873,2]
[322153194,1712854239831,-4693.14,0.00032873,2]
[322153196,1712854239842,-500.0,0.00032873,2]
[322153197,1712854239851,-547.59831631,0.00032873,2]
[322153198,1712854239860,-4951.39,0.00032873,2]
[322153199,1712854239870,-2550.71,0.00032873,2]
[322153200,1712854239880,-3498.33,0.00032873,2]
[322153201,1712854239889,-6181.5,0.00032873,2]
[322153202,1712854239899,-1640.1,0.00032873,2]
[322153203,1712854239909,-1344.52481539,0.00032873,2]
[322153204,1712854242145,-748.65941806,0.00020764,2]
[322153205,1712854242157,-2500.0,0.00032674,2]
[322153206,1712854242167,-865.42,0.00032764,10]
[322153207,1712854242177,-152.77070344,0.00032773,2]
[322153208,1712854242189,-816.01,0.00032774,2]
[322153209,1712854242199,-500.0,0.00032774,2]
[322153210,1712854242209,-500.0,0.00032774,2]